Cogmind - Beta 11 X8 @@@ ROGUE MODE // 2021.11.09 @ 14:19:56 Player: ZEROAFFEX Result: Destroyed by B-75 Beast with Magnetic Acceleration Cannon Performance ------------- Evolutions (4) 2000 Regions Visited (13) 2600 Robots Destroyed (144) 720 Value Destroyed (4120) 4120 Prototype IDs (14) 280 Alien Tech Used (0) 0 Bonus (894) 894 TOTAL SCORE: 10614 Bonus ------- High Alert Combat Kills 235 Follower Combat Kills 359 Met Data Miner 300 Cogmind --------- Core Integrity 0/850 Matter 257/300 Energy 99/100 System Corruption 0% Temperature Cool (0) Movement Core (50) Location -6/Extension Parts ------- > --- POWER (1) -------- (None) > --- PROPULSION (4) --- (None) > --- UTILITY (7) ------ (None) > --- WEAPON (3) ------- (None) > --- INVENTORY (5) ---- Light Angular Momentum Engine Light Treads High-capacity Matter Pod (200) Gauss Rifle Datajack Peak State ------------ > --- POWER ------------ (None) > --- PROPULSION ------- Light Treads Armored Treads Compact Wheel Armored Wheel > --- UTILITY ---------- Coolant Injector Huge Storage Unit Weapon Cycler Transmission Jammer Layered Medium Armor Plating Experimental Thermal Shield Hacking Suite > --- WEAPON ----------- Heavy Laser Gauss Rifle Gauss Rifle > --- INVENTORY -------- Light Angular Momentum Engine Light Treads Light Treads Light Treads Light Treads High-capacity Matter Pod Point Defense System Hacking Suite Heavy Laser Gauss Rifle Datajack [Rating: 50] Favorites ----------- Power Improved Ion Engine Engine Improved Ion Engine Power Core Light Nuclear Core Propulsion Light Treads Treads Light Treads Wheel Armored Wheel Utility High-capacity Storage Unit Device Advanced Heat Sink Storage High-capacity Storage Unit Processor Targeting Computer Hackware Hacking Suite Protection Light Armor Plating Weapon Heavy Assault Rifle Energy Gun Gatling Laser Energy Cannon Advanced Beam Cannon Ballistic Gun Heavy Assault Rifle Launcher Grenade Launcher Special Weapon Mining Laser Build | -11 -10 -10 -9 -9 -9 -8 -8 -7 -7 -7 -6 -6 -6 ------- Run | Scr Mat Min Mat Min Exi Min Mat Fac Low Dat Pro Fac Ext Slots Evolved 8 | . . . 2 . . . 2 2 . . . 2 . Power . | . . . . . . . . . . . . . . Propulsion 2 | . . . . . . . . 1 . . . 1 . Utility 5 | . . . 1 . . . 2 1 . . . 1 . Weapon 1 | . . . 1 . . . . . . . . . . Parts Attached 128 | 6 14 4 28 2 . 5 28 12 5 . 17 7 . Power 16 | 1 1 1 5 1 . . 2 2 1 . 2 . . Engine 10 | 1 1 1 4 1 . . . 1 1 . . . . Core 6 | . . . 1 . . . 2 1 . . 2 . . Reactor . | . . . . . . . . . . . . . . Propulsion 28 | 2 1 . 5 . . 1 6 3 1 . 6 3 . Treads 19 | 1 . . 4 . . 1 4 2 1 . 3 3 . Leg . | . . . . . . . . . . . . . . Wheel 9 | 1 1 . 1 . . . 2 1 . . 3 . . Hover . | . . . . . . . . . . . . . . Flight . | . . . . . . . . . . . . . . Utility 35 | 1 4 1 4 1 . 1 7 5 3 . 5 3 . Device 16 | . 1 1 3 . . 1 . 3 1 . 5 1 . Storage 5 | 1 2 . . . . . 1 1 . . . . . Processor 2 | . . . 1 . . . 1 . . . . . . Hackware 3 | . . . . . . . 1 1 . . . 1 . Protection 9 | . 1 . . 1 . . 4 . 2 . . 1 . Artifact . | . . . . . . . . . . . . . . Weapon 49 | 2 8 2 14 . . 3 13 2 . . 4 1 . Energy Gun 12 | 1 . . 6 . . 1 1 1 . . 1 1 . Energy Cannon 2 | . . . . . . . 2 . . . . . . Ballistic Gun 32 | 1 7 1 7 . . 2 10 1 . . 3 . . Ballistic Cannon . | . . . . . . . . . . . . . . Launcher 1 | . . 1 . . . . . . . . . . . Special Weapon 2 | . 1 . 1 . . . . . . . . . . Impact Weapon . | . . . . . . . . . . . . . . Slashing Weapon . | . . . . . . . . . . . . . . Piercing Weapon . | . . . . . . . . . . . . . . Special Melee Weapon . | . . . . . . . . . . . . . . Unidentified Prototypes 5 | . . . 1 . . . 2 1 . . 1 . . Parts Lost 42 | . . . 3 2 . 3 9 1 2 . 16 6 . Power 5 | . . . . 1 . . 1 . . . 3 . . Propulsion 10 | . . . . . . 1 2 . . . 5 2 . Utility 15 | . . . 2 1 . . 4 . 2 . 4 2 . Weapon 12 | . . . 1 . . 2 2 1 . . 4 2 . Highest Loss Streak 7 | . . . 3 2 . 2 3 1 1 . 7 4 . Average Slot Usage (%) 96 | . 99 100 99 100 100 88 99 99 100 100 93 75 . Engine 6 | . 14 14 9 2 11 11 2 1 7 7 1 . . Core 2 | . . . 1 8 . . 6 5 . . 4 . . Treads 12 | . 14 14 11 11 11 10 9 15 15 15 12 13 . Wheel 9 | . 14 14 11 11 11 11 8 6 7 7 8 8 . Device 15 | . 1 14 12 19 11 11 9 21 24 23 24 27 . Storage 9 | . 14 14 11 11 11 11 8 7 7 7 7 5 . Processor 1 | . . . 9 . . . 2 . . . . . . Hackware 3 | . . . . . . . 9 7 7 7 7 4 . Protection 6 | . 11 . . 2 11 11 15 7 5 7 1 2 . Energy Gun 7 | . 5 . 10 11 11 11 6 2 7 7 7 4 . Ballistic Gun 18 | . 21 27 21 22 22 11 17 15 15 15 14 7 . Naked Turns 121 | . . . . . . . . . . . . 21 100 Heaviest Build 108 | 13 51 51 60 60 60 59 63 108 107 107 108 105 . Greatest Support 40 | 10 10 10 12 12 12 12 40 12 12 12 40 28 3 Greatest Overweight (x) 9 | 1 5 5 5 4 4 4 5 8 8 8 9 5 . Average Overweight (x) 4 | . 3 5 4 4 4 4 4 6 8 8 7 3 . Largest Inventory Capacity 25 | 8 20 20 20 20 20 20 20 25 25 25 25 25 5 Average Capacity 21 | 6 18 20 20 20 20 20 19 22 25 25 25 23 5 Most Carried 25 | 4 20 20 20 20 20 20 20 25 25 25 25 12 5 Average Carried 19 | 2 13 19 19 19 20 19 18 20 24 25 18 8 5 Final Capacity 25 | 8 20 20 20 20 20 20 20 25 25 25 25 5 5 Final Carried 25 | 4 20 20 20 20 20 19 20 25 25 25 13 5 5 Class Distribution -------------------- 58% | Scavenger-Tank 25% | Mutant 5% | Scavenger-Mutant 4% | Scavenger-Gunner 4% | Gunner Dominant Class ---------------- Mutant | -10/Materials Mutant | -10/Mines Scavenger-Gunner | -9/Materials Scavenger-Tank | -9/Mines Scavenger-Tank | -9/Exiles Mutant | -8/Mines Scavenger-Tank | -8/Materials Scavenger-Tank | -7/Factory Scavenger-Tank | -7/Lower Caves Scavenger-Tank | -7/Data Miner Scavenger-Tank | -6/Proximity Caves Scavenger-Mutant | -6/Factory Mutant | -6/Extension Resources | -11 -10 -10 -9 -9 -9 -8 -8 -7 -7 -7 -6 -6 -6 ----------- Run | Scr Mat Min Mat Min Exi Min Mat Fac Low Dat Pro Fac Ext Matter Collected 3593 | 235 250 231 754 242 . 152 839 344 238 . 298 10 . Remotely . | . . . . . . . . . . . . . . Salvage Created 5318 | . 208 57 1125 371 . 221 1719 734 468 . 415 . . Parts 324 | . 22 6 76 21 . 15 106 46 22 . 10 . . Haulers Intercepted 10 | . 1 . 5 . . . 2 2 . . . . . Recyclers Shooed 4 | . . . 1 . . . 2 1 . . . . . Parts Field Recycled . | . . . . . . . . . . . . . . Retrieved Matter . | . . . . . . . . . . . . . . Parts Self-Destructed 30 | . . . . . . . . . 18 . 12 . . Prevented . | . . . . . . . . . . . . . . Kills | -11 -10 -10 -9 -9 -9 -8 -8 -7 -7 -7 -6 -6 -6 ------- Run | Scr Mat Min Mat Min Exi Min Mat Fac Low Dat Pro Fac Ext Combat Hostiles Destroyed 116 | . 8 2 21 10 . 7 40 10 10 . 8 . . Guns 105 | . 8 2 20 10 . 7 34 6 10 . 8 . . Cannons 10 | . . . . . . . 6 4 . . . . . Classes Destroyed 18 | . 4 2 6 1 . . 2 1 1 . 1 . . Worker 7 | . 1 . 1 . . . 1 4 . . . . . Builder 3 | . . 1 1 . . . . 1 . . . . . Tunneler 1 | . . . . 1 . . . . . . . . . Hauler 10 | . 1 . 5 . . . 2 2 . . . . . Recycler 3 | . . . . . . . 1 2 . . . . . Operator 2 | . . . 1 . . . 1 . . . . . . Watcher 4 | . . . 2 . . . 1 1 . . . . . Swarmer 41 | . 7 . 6 3 . 4 16 4 . . 1 . . Grunt 45 | . 1 . 6 5 . 3 16 4 7 . 3 . . Brawler 1 | . . . 1 . . . . . . . . . . Duelist 5 | . . . 1 2 . . 1 . . . 1 . . Protector 1 | . . . 1 . . . . . . . . . . Sentry 14 | . . . 6 . . . 6 . 1 . 1 . . Hunter 1 | . . . . . . . . . 1 . . . . Programmer 4 | . . . . . . . . 2 1 . 1 . . Heavy 1 | . . . . . . . 1 . . . . . . Behemoth 1 | . . . . . . . . . . . 1 . . Assembled 2 | . . 2 . . . . . . . . . . . Best Kill Streak 9 | . 3 3 9 5 . 4 5 5 3 . 2 . . Combat Bots Only 5 | . 3 2 5 3 . 4 5 4 3 . 2 . . Max Kills in Single Turn 2 | . 1 1 2 1 . 1 2 2 1 . 1 . . Gunslinging . | . . . . . . . . . . . . . . Exploded . | . . . . . . . . . . . . . . Melee . | . . . . . . . . . . . . . . Uniques/NPCs Destroyed . | . . . . . . . . . . . . . . Combat | -11 -10 -10 -9 -9 -9 -8 -8 -7 -7 -7 -6 -6 -6 -------- Run | Scr Mat Min Mat Min Exi Min Mat Fac Low Dat Pro Fac Ext Damage Taken 8231 | . 309 168 865 278 . 357 2044 375 553 . 1558 1145 579 Core 1833 | . 60 45 92 16 . 65 342 32 80 . 242 280 579 Absorbed by Shields 497 | . 12 64 320 59 . . . . 42 . . . . Core Remaining (%) 60 | 100 . 58 . . . 56 37 . . . 49 . . Volleys Fired 325 | . 34 6 67 25 . 16 96 31 22 . 27 1 . Largest 3 | . 2 2 3 3 . 3 3 3 3 . 3 2 . Hottest 136 | . 100 40 121 102 . 108 114 136 136 . 136 97 . Shots Fired 890 | . 66 11 172 75 . 42 287 92 64 . 79 2 . Gun 842 | . 64 10 170 75 . 42 263 73 64 . 79 2 . Cannon 43 | . . . . . . . 24 19 . . . . . Launcher 1 | . . 1 . . . . . . . . . . . Special 4 | . 2 . 2 . . . . . . . . . . Kinetic 616 | . 50 10 130 50 . 26 191 62 44 . 52 1 . Thermal 273 | . 16 . 42 25 . 16 96 30 20 . 27 1 . Explosive 1 | . . 1 . . . . . . . . . . . Electromagnetic . | . . . . . . . . . . . . . . Robot Hit Streak 15 | . 8 3 15 4 . 9 12 15 12 . 10 . . Robot Miss Streak 8 | . 4 2 4 4 . 3 6 5 3 . 8 . . Penetration Max 1 | . . . . . . . . 1 1 . . . . Secondary Targets 22 | . . . 6 3 . 2 8 . . . 3 . . Max Gunslinging Chain 1 | . . . 1 1 . 1 1 . . . 1 . . Shots Hit Robots 553 | . 32 6 107 39 . 24 177 59 53 . 56 . . Core Hits 265 | . 13 7 53 18 . 14 82 28 27 . 23 . . Critical Kills 2 | . . . . . . . . 2 . . . . . Critical Parts Destroyed 6 | . . . 1 . . . 2 1 1 . 1 . . Critical Strikes 18 | . . . 5 1 . . 6 3 1 . 2 . . Burn 8 | . . . 3 1 . . 3 . . . 1 . . Destroy 10 | . . . 2 . . . 3 3 1 . 1 . . Melee Attacks . | . . . . . . . . . . . . . . Impact . | . . . . . . . . . . . . . . Slashing . | . . . . . . . . . . . . . . Piercing . | . . . . . . . . . . . . . . Sneak Attacks . | . . . . . . . . . . . . . . Combat Hostiles . | . . . . . . . . . . . . . . Follow-up Attacks . | . . . . . . . . . . . . . . Damage Inflicted 9401 | . 344 115 1637 597 . 353 2782 1330 980 . 1258 . 5 Guns 8689 | . 344 100 1637 597 . 350 2399 1024 980 . 1258 . . Cannons 624 | . . . . . . . 350 274 . . . . . Explosions 15 | . . 15 . . . . . . . . . . . Melee . | . . . . . . . . . . . . . . Ramming 73 | . . . . . . 3 33 32 . . . . 5 Kinetic 6090 | . 244 100 1189 380 . 201 1676 849 688 . 763 . . Thermal 3223 | . 100 . 448 217 . 149 1073 449 292 . 495 . . Explosive 15 | . . 15 . . . . . . . . . . . Electromagnetic . | . . . . . . . . . . . . . . Impact . | . . . . . . . . . . . . . . Slashing . | . . . . . . . . . . . . . . Piercing . | . . . . . . . . . . . . . . Highest Corruption 4 | . . . 4 4 4 4 2 1 1 1 2 . . Average Corruption 2 | . . . 4 4 4 4 2 1 1 1 1 . . Corruption Purged . | . . . . . . . . . . . . . . Effects 78 | . . . 8 21 8 21 . 2 3 3 12 . . Message Errors 21 | . . . 2 8 2 2 . . 1 1 5 . . Matter Fused 16 | . . . 3 6 1 6 . . . . . . . Heat Flow Errors 11 | . . . 1 . . 6 . . . . 4 . . Energy Discharges 13 | . . . 1 4 1 3 . 1 1 . 2 . . Parts Rejected 1 | . . . . . . 1 . . . . . . . Data Loss (minor) 15 | . . . 1 3 4 3 . 1 1 2 . . . Weapon Failures 1 | . . . . . . . . . . . 1 . . Overload Shots . | . . . . . . . . . . . . . . Overflow Damage 17 | . . . . . . . 10 7 . . . . . Projectiles 10 | . . . . . . . 10 . . . . . . Explosions . | . . . . . . . . . . . . . . Melee 7 | . . . . . . . . 7 . . . . . Knockbacks 1 | . . . . . . . . 1 . . . . . Impact 1 | . . . . . . . . 1 . . . . . Kinetic . | . . . . . . . . . . . . . . Secondary . | . . . . . . . . . . . . . . Self-Inflicted Damage 35 | . . . . . . 1 16 16 . . . . 2 Shots . | . . . . . . . . . . . . . . Rammed 7 | . . . . 1 . 1 2 1 . . . . 2 Targets Rammed 7 | . . . . 1 . 1 2 1 . . . . 2 Kicked . | . . . . . . . . . . . . . . Crushed . | . . . . . . . . . . . . . . Highest Temperature 310 | . 100 . 310 15 . 243 244 2 22 . 235 . . Average Temperature 66 | . 37 . 81 6 . 91 19 2 9 . 107 . . Received Heat Transfer 2207 | . 36 . 277 68 . 171 675 54 197 . 480 171 78 Effects 4 | . . . 4 . . . . . . . . . . Energy Bleed 1 | . . . 1 . . . . . . . . . . Interference 3 | . . . 3 . . . . . . . . . . Siege Activations . | . . . . . . . . . . . . . . Robots Corrupted . | . . . . . . . . . . . . . . Combat Hostiles . | . . . . . . . . . . . . . . Parts Fried . | . . . . . . . . . . . . . . Impact Corruptions 1 | . . . . . . . . 1 . . . . . Robots Melted 1 | . . . 1 . . . . . . . . . . Combat Hostiles 1 | . . . 1 . . . . . . . . . . Parts Melted 12 | . . . 6 3 . . 2 . . . 1 . . Heat Transferred 7715 | . 296 . 1217 629 . 370 2590 856 650 . 1107 . . Parts Sabotaged . | . . . . . . . . . . . . . . Parts Stolen . | . . . . . . . . . . . . . . Parts Stripped . | . . . . . . . . . . . . . . Power Chain Reactions . | . . . . . . . . . . . . . . Missiles Intercepted . | . . . . . . . . . . . . . . Alert | -11 -10 -10 -9 -9 -9 -8 -8 -7 -7 -7 -6 -6 -6 ------- Run | Scr Mat Min Mat Min Exi Min Mat Fac Low Dat Pro Fac Ext Peak Influence 722 | . 179 47 546 305 . 145 722 472 . . . 69 108 Initial 328 | . . 42 . 131 . . . 328 . . . 28 33 Average 206 | . 69 20 329 146 . 61 344 345 . . . 13 65 Maximum Alert Level 3 | . . . 2 1 . . 3 2 . . . . . Low Security (%) 56 | 100 100 100 35 61 . 100 24 . . . . 100 100 Level 1 24 | . . . 17 38 . . 38 72 . . . . . Level 2 18 | . . . 46 . . . 30 27 . . . . . Level 3 1 | . . . . . . . 6 . . . . . . Level 4 . | . . . . . . . . . . . . . . Level 5 . | . . . . . . . . . . . . . . High Security . | . . . . . . . . . . . . . . Max Security . | . . . . . . . . . . . . . . Squads Dispatched 21 | . 1 . 4 . . . 8 4 . . . 4 . Investigation 4 | . . . . . . . . 2 . . . 2 . Extermination 1 | . . . . . . . . 1 . . . . . Reinforcement 11 | . 1 . 3 . . . 5 1 . . . 1 . Assault 2 | . . . 1 . . . . . . . . 1 . Garrison 3 | . . . . . . . 3 . . . . . . Intercept . | . . . . . . . . . . . . . . Construction Impeded . | . . . . . . . . . . . . . . Haulers Reinforced . | . . . . . . . . . . . . . . Active Scanning Responses . | . . . . . . . . . . . . . . Cargo Convoy Interrupts . | . . . . . . . . . . . . . . Stealth | -11 -10 -10 -9 -9 -9 -8 -8 -7 -7 -7 -6 -6 -6 --------- Run | Scr Mat Min Mat Min Exi Min Mat Fac Low Dat Pro Fac Ext Distress Signals 5 | . . . 2 . . . 2 . . . . . 1 Communications Jammed 26 | . . . . . . . . 26 . . . . . Distress Signals 26 | . . . . . . . . 26 . . . . . Times Spotted 218 | . 21 8 41 12 . 7 64 13 12 . 16 9 15 Peak Tracking Total 14 | . 4 8 7 3 . 4 7 5 4 . 4 7 14 Tactical Retreats 12 | . 1 . . 1 . . 5 . 1 . 1 2 1 Traps | -11 -10 -10 -9 -9 -9 -8 -8 -7 -7 -7 -6 -6 -6 ------- Run | Scr Mat Min Mat Min Exi Min Mat Fac Low Dat Pro Fac Ext Traps Triggered 3 | . . . . . . . 1 1 . . . 1 . Indirectly . | . . . . . . . . . . . . . . Trap Hack Attempts . | . . . . . . . . . . . . . . Triggered . | . . . . . . . . . . . . . . Disarmed . | . . . . . . . . . . . . . . Reprogrammed . | . . . . . . . . . . . . . . Reused . | . . . . . . . . . . . . . . Traps Extracted . | . . . . . . . . . . . . . . Installed . | . . . . . . . . . . . . . . Triggered . | . . . . . . . . . . . . . . Machines | -11 -10 -10 -9 -9 -9 -8 -8 -7 -7 -7 -6 -6 -6 ---------- Run | Scr Mat Min Mat Min Exi Min Mat Fac Low Dat Pro Fac Ext Machines Disabled 4 | . . . 3 . . . 1 . . . . . . Max in Single Turn 1 | . . . 1 . . . 1 . . . . . . Garrison Access 2 | . . . . . . . 1 . . . . 1 . Machines Sabotaged . | . . . . . . . . . . . . . . Garrisons Compromised . | . . . . . . . . . . . . . . Overloaded Fab Kills . | . . . . . . . . . . . . . . Hacking | -11 -10 -10 -9 -9 -9 -8 -8 -7 -7 -7 -6 -6 -6 --------- Run | Scr Mat Min Mat Min Exi Min Mat Fac Low Dat Pro Fac Ext Machines Accessed 38 | . 7 . 9 . . . 7 6 . 4 . 3 2 Terminals 25 | . 7 . 7 . . . 4 3 . . . 2 2 Fabricators 3 | . . . . . . . . 2 . . . 1 . Repair Stations 4 | . . . 1 . . . 2 1 . . . . . Recycling Units . | . . . . . . . . . . . . . . Scanalyzers 1 | . . . 1 . . . . . . . . . . Garrison Access 1 | . . . . . . . 1 . . . . . . Total Hacks 138 | . 33 . 33 . . . 20 15 . 30 . 3 4 Successful 102 | . 20 . 22 . . . 16 12 . 30 . 2 . Failed 36 | . 13 . 11 . . . 4 3 . . . 1 4 Catastrophic 6 | . 2 . 3 . . . 1 . . . . . . Database Lockouts . | . . . . . . . . . . . . . . Manual 84 | . 33 . 28 . . . 14 7 . . . . 2 Terminals 91 | . 33 . 28 . . . 14 10 . . . 2 4 Fabricators 4 | . . . . . . . . 3 . . . 1 . Repair Stations 7 | . . . 1 . . . 4 2 . . . . . Recycling Units . | . . . . . . . . . . . . . . Scanalyzers 4 | . . . 4 . . . . . . . . . . Garrison Access 2 | . . . . . . . 2 . . . . . . Terminal Hacks 54 | . 7 . 7 . . . 3 5 . 30 . 2 . Record 13 | . . . . . . . . 2 . 11 . . . Part Schematic 13 | . 1 . 1 . . . . . . 11 . . . Robot Schematic 5 | . . . . . . . . . . 5 . . . Prototype ID Bank 3 | . . . . . . . . . . 3 . . . Open Door 1 | . . . . . . . . . . . . 1 . Open DSF 2 | . . . . . . . . 1 . . . 1 . Branch Access Points 2 | . 1 . . . . . . 1 . . . . . Unreport Threat 2 | . 1 . 1 . . . . . . . . . . Locate Traps 11 | . 3 . 4 . . . 3 1 . . . . . Recall Investigation 1 | . . . 1 . . . . . . . . . . Zone Layout 1 | . 1 . . . . . . . . . . . . Fabricator Hacks 1 | . . . . . . . . 1 . . . . . Build 1 | . . . . . . . . 1 . . . . . Repair Station Hacks 6 | . . . . . . . 4 2 . . . . . Scan Component 3 | . . . . . . . 2 1 . . . . . Repair 3 | . . . . . . . 2 1 . . . . . Recycling Unit Hacks . | . . . . . . . . . . . . . . Scanalyzer 4 | . . . 4 . . . . . . . . . . Insert Component 2 | . . . 2 . . . . . . . . . . Analyze 2 | . . . 2 . . . . . . . . . . Garrison Access Hacks 2 | . . . . . . . 2 . . . . . . Unlock Access 1 | . . . . . . . 1 . . . . . . Seal Access 1 | . . . . . . . 1 . . . . . . Unauthorized Hacks 35 | . 13 . 11 . . . 7 4 . . . . . Terminals 35 | . 13 . 11 . . . 7 4 . . . . . Track 19 | . 7 . 6 . . . 4 2 . . . . . Botnet 16 | . 6 . 5 . . . 3 2 . . . . . Fabricators . | . . . . . . . . . . . . . . Repair Stations . | . . . . . . . . . . . . . . Recycling Units . | . . . . . . . . . . . . . . Scanalyzers . | . . . . . . . . . . . . . . Garrison Access . | . . . . . . . . . . . . . . Data Cores Recovered . | . . . . . . . . . . . . . . Used . | . . . . . . . . . . . . . . Hacking Detections 27 | . 6 . 7 . . . 5 6 . . . 1 2 Full Trace Events 4 | . . . 1 . . . . 2 . . . 1 . Feedback Events . | . . . . . . . . . . . . . . Feedback Blocked . | . . . . . . . . . . . . . . Robot Schematics Acquired 5 | . . . . . . . . . . 5 . . . Robots Built . | . . . . . . . . . . . . . . Authchips . | . . . . . . . . . . . . . . Time . | . . . . . . . . . . . . . . Total Robot Build Rating . | . . . . . . . . . . . . . . Part Schematics Acquired 15 | . 1 . 3 . . . . . . 11 . . . Parts Built 2 | . . . . . . . . 2 . . . . . Authchips . | . . . . . . . . . . . . . . Time 53 | . . . . . . . . 53 . . . . . Total Part Build Rating 12 | . . . . . . . . 12 . . . . . Parts Repaired 3 | . . . . . . . 2 1 . . . . . Time 74 | . . . . . . . 58 16 . . . . . Parts Recycled . | . . . . . . . . . . . . . . Recycled Matter . | . . . . . . . . . . . . . . Retrieved Matter . | . . . . . . . . . . . . . . Retrieved Components . | . . . . . . . . . . . . . . Parts Scanalyzed 2 | . . . 2 . . . . . . . . . . Part Schematics Acquired 2 | . . . 2 . . . . . . . . . . Parts Damaged . | . . . . . . . . . . . . . . Bothacking | -11 -10 -10 -9 -9 -9 -8 -8 -7 -7 -7 -6 -6 -6 ------------ Run | Scr Mat Min Mat Min Exi Min Mat Fac Low Dat Pro Fac Ext Used RIF Installer . | . . . . . . . . . . . . . . Robots Hacked . | . . . . . . . . . . . . . . Non-combat . | . . . . . . . . . . . . . . Combat . | . . . . . . . . . . . . . . Robot Hacks Applied . | . . . . . . . . . . . . . . Relay Couplers Released 4 | . . . . . . . . 3 . . . 1 . Machine Destruction 1 | . . . . . . . . . . . . 1 . Programmers 3 | . . . . . . . . 3 . . . . . Fabnet Peak Effective % . | . . . . . . . . . . . . . . Robots Rewired . | . . . . . . . . . . . . . . Allies Hacked . | . . . . . . . . . . . . . . Hacks Repelled . | . . . . . . . . . . . . . . Allies | -11 -10 -10 -9 -9 -9 -8 -8 -7 -7 -7 -6 -6 -6 -------- Run | Scr Mat Min Mat Min Exi Min Mat Fac Low Dat Pro Fac Ext Total Allies 9 | . . 5 . . . . . . . . 1 . 3 Largest Group 5 | . . 5 5 3 . . . . . . 1 . 3 Highest-Rated Group 99 | . . 81 81 40 . . . . . . 95 . 99 Highest-Rated Ally 95 | . . 31 31 16 . . . . . . 95 . 37 Total Orders 2 | . . . 2 . . . . . . . . . . STAY 1 | . . . 1 . . . . . . . . . . FOLLOW 1 | . . . 1 . . . . . . . . . . Ally Attacks 111 | . . 8 55 12 . . . . . . 26 . 10 Total Damage 2303 | . . 167 749 120 . . . . . . 1061 . 206 Kills 21 | . . 4 13 1 . . . . . . 3 . . Allies Corrupted . | . . . . . . . . . . . . . . Allies Melted . | . . . . . . . . . . . . . . Intel | -11 -10 -10 -9 -9 -9 -8 -8 -7 -7 -7 -6 -6 -6 ------- Run | Scr Mat Min Mat Min Exi Min Mat Fac Low Dat Pro Fac Ext Robot Analysis Total . | . . . . . . . . . . . . . . Derelict Logs Recovered 7 | . . 3 . 1 . . . . 2 . 1 . . Drone Launches . | . . . . . . . . . . . . . . Drone Recoveries . | . . . . . . . . . . . . . . Exploration | -11 -10 -10 -9 -9 -9 -8 -8 -7 -7 -7 -6 -6 -6 ------------- Run | Scr Mat Min Mat Min Exi Min Mat Fac Low Dat Pro Fac Ext Turns Passed 11326 | 45 1003 887 1612 920 413 817 1547 1057 1233 248 1150 294 100 Spaces Moved 6086 | 37 621 552 862 526 276 504 667 454 542 119 526 209 191 Core 237 | 3 . . . . . . . . . . . 43 191 Treads 6 | . . . . . . . 4 . . . 2 . . Legs . | . . . . . . . . . . . . . . Wheels 5843 | 34 621 552 862 526 276 504 663 454 542 119 524 166 . Hover . | . . . . . . . . . . . . . . Flight . | . . . . . . . . . . . . . . Fastest Speed 50 | 50 95 155 150 150 150 150 105 150 210 210 140 50 50 Average Speed 158 | 88 131 155 150 150 150 150 159 180 210 210 197 135 50 Slowest Speed 480 | 100 155 155 155 150 150 150 250 210 210 210 480 175 50 Overloaded Moves . | . . . . . . . . . . . . . . Propulsion Burnouts . | . . . . . . . . . . . . . . Robots Hopped . | . . . . . . . . . . . . . . Cave-ins Triggered . | . . . . . . . . . . . . . . Exploration Rate (%) 61 | 4 95 98 71 97 74 88 63 13 65 75 72 7 40 Regions Visited 13 Branch Regions 8 Pre-discovered Areas 4 | . . 2 . . . . . . 1 1 . . . Known Exits Taken 4 | . 1 . 1 . 1 . . 1 . . . . . Unknown Exits Taken 9 | 1 . 1 . 1 . 1 1 . 1 1 1 1 . Scrap Searched 8 | . . 2 . 1 . 2 . . 3 . . . . Spaces Dug 4 | . 2 . 2 . . . . . . . . . . Terrain Destroyed 15 | . 2 5 2 . . . . . 5 . . 1 . Melee . | . . . . . . . . . . . . . . Projectile 10 | . 2 . 2 . . . . . 5 . . 1 . AOE 5 | . . 5 . . . . . . . . . . . Terrain Rammed . | . . . . . . . . . . . . . . Walls Destroyed . | . . . . . . . . . . . . . . Machines Disabled . | . . . . . . . . . . . . . . Actions | -11 -10 -10 -9 -9 -9 -8 -8 -7 -7 -7 -6 -6 -6 --------- Run | Scr Mat Min Mat Min Exi Min Mat Fac Low Dat Pro Fac Ext Total 7080 | 46 743 573 1052 605 275 533 941 620 585 118 576 218 195 Wait 384 | . 49 6 60 50 . . 96 104 12 . 3 2 2 Move 6073 | 36 620 551 861 525 275 503 666 453 541 118 525 208 191 Hop . | . . . . . . . . . . . . . . Pick Up 86 | 4 16 3 11 2 . 4 30 11 2 . 3 . . Fast Attach 26 | 6 3 . 4 . . 1 7 4 . . 1 . . Attach 45 | . . . 5 2 . 3 8 3 2 . 15 7 . Detach . | . . . . . . . . . . . . . . Swap 57 | . 11 4 19 . . 1 13 5 3 . 1 . . Drop 77 | . 10 3 25 . . 4 23 8 3 . 1 . . Fire 325 | . 34 6 67 25 . 16 96 31 22 . 27 1 . Melee . | . . . . . . . . . . . . . . Ram 7 | . . . . 1 . 1 2 1 . . . . 2 Kick . | . . . . . . . . . . . . . . Crush . | . . . . . . . . . . . . . . Escape Stasis . | . . . . . . . . . . . . . . Rewire . | . . . . . . . . . . . . . . Trap . | . . . . . . . . . . . . . . Miscellaneous . | . . . . . . . . . . . . . . Route ------- -11/Scrapyard -10/Materials (discovered 4 exits: *Mat x3 / *Min) -10/Mines (discovered 2 exits: *Mat x2) -9/Materials (discovered 3 exits: *Mat x2 / *Min) -9/Mines (discovered 3 exits: *Mat x2 / [*Exi]) -9/Exiles -8/Mines -8/Materials (discovered 3 exits: *Fac x3) -7/Factory (discovered 3 exits: Sto / *Low x2) -7/Lower Caves (discovered 2 exits: [*Low] / *Dat) -7/Data Miner -6/Proximity Caves -6/Factory -6/Extension History --------- Turn | Location | Event 24 | -11/Scrapyard | Discovered new exit (range 15) 46 | -11/Scrapyard | Entered Materials 99 | -10/Materials | Identified exit to Mines 300 | -10/Materials | Build established: Mutant 397 | -10/Materials | Discovered new exit (range 14) 504 | -10/Materials | Discovered new exit (range 4) 900 | -10/Materials | Discovered new exit (range 12) 1049 | -10/Materials | Entered Mines 1060 | -10/Mines | Learned location of Zion (-6) 1077 | -10/Mines | Assembled infested the area 1082 | -10/Mines | Assisted by a Guerilla fighting off Assembled 1211 | -10/Mines | Discovered new exit (range 14) 1297 | -10/Mines | Discovered new exit (range 15) 1332 | -10/Mines | Learned location of Storage (-7) 1348 | -10/Mines | Assisted by bots powering up and referring to "LRC-V3" 1936 | -10/Mines | Entered Materials 1936 | -9/Materials | Accompanied by 5 allies 1936 | -9/Materials | Evolved 2 slots: Utility x1, Weapon x1 1937 | -9/Materials | Identified exit to Mines 1941 | -9/Materials | Led the pair of lost Derelicts to an unsafe place 2229 | -9/Materials | Build established: Gunner 2635 | -9/Materials | Discovered new exit (range 11) 2896 | -9/Materials | Build established: Scavenger-Mutant 3136 | -9/Materials | First assault squad dispatched 3325 | -9/Materials | Lost 3 parts (2u1w) 3419 | -9/Materials | Discovered new exit (range 11) 3548 | -9/Materials | Entered Mines 3548 | -9/Mines | Accompanied by 3 allies 3626 | -9/Mines | Build established: Scavenger-Tank 3722 | -9/Mines | Found a hidden stash of uninstalled traps 3749 | -9/Mines | Deemed a non-threat by the Exiles lab entrance 3749 | -9/Mines | Discovered new exit (range 5) 3872 | -9/Mines | Discovered new exit (range 4) 4149 | -9/Mines | Discovered new exit (range 14) 4268 | -9/Mines | Learned Materials stockpile data 4468 | -9/Mines | Entered Exiles 4468 | -9/Exiles | Found Exiles lab abandoned 4469 | -9/Exiles | Identified exit to Mines 4881 | -9/Exiles | Entered Mines 5050 | -8/Mines | Discovered new exit (range 15) 5188 | -8/Mines | Build established: Mutant 5698 | -8/Mines | Entered Materials 5698 | -8/Materials | Evolved 2 slots: Utility x2 5966 | -8/Materials | Repaired Arm. Wheel 6181 | -8/Materials | Build established: Scavenger-Tank 6237 | -8/Materials | Discovered new exit (range 5) 6545 | -8/Materials | Discovered new exit (range 8) 6911 | -8/Materials | Core integrity fell below 50% 6931 | -8/Materials | Garrison activated, responded to threat 6993 | -8/Materials | Lost 3 parts (1p1n1u) 7038 | -8/Materials | Repaired Hcp. Storage Unit 7043 | -8/Materials | Lost 3 parts (1u2w) 7151 | -8/Materials | Identified exit to Garrison 7232 | -8/Materials | Discovered new exit (range 3) 7245 | -8/Materials | Entered Factory 7245 | -7/Factory | Evolved 2 slots: Propulsion x1, Utility x1 7441 | -7/Factory | Fabricated Point Defense System (x2) 7754 | -7/Factory | Repaired Arm. Wheel 7954 | -7/Factory | Identified exit to Storage 7954 | -7/Factory | Identified exit to Lower Caves 8302 | -7/Factory | Entered Lower Caves 8672 | -7/Lower Caves | Attracted the attention of an 0b10 checkpoint 8972 | -7/Lower Caves | Discovered new exit (range 11) 9515 | -7/Lower Caves | A Derelict revealed a hidden shortcut to meet someone special 9535 | -7/Lower Caves | Entered Data Miner 9535 | -7/Data Miner | Discovered new exit (range 6) 9575 | -7/Data Miner | Met Data Miner 9638 | -7/Data Miner | Learned location of Section 7 (-2) 9638 | -7/Data Miner | Acquired the access code to Warlord's prototype stash 9701 | -7/Data Miner | Received God Mode back door access code from Data Miner 9783 | -7/Data Miner | Entered Proximity Caves 9804 | -6/Proximity Caves | Escorted by Enhanced Grunt 9804 | -6/Proximity Caves | Attracted the attention of an 0b10 checkpoint 10062 | -6/Proximity Caves | Spotted B-75 Beast 10087 | -6/Proximity Caves | Destroyed B-75 Beast 10112 | -6/Proximity Caves | Lost 7 parts (1p2n2u2w) 10529 | -6/Proximity Caves | Learned Factory security intel 10737 | -6/Proximity Caves | Found Prototype Device 10758 | -6/Proximity Caves | Identified Exp. Thermal Shield 10771 | -6/Proximity Caves | Lost 7 parts (1p2n2u2w) 10917 | -6/Proximity Caves | Discovered new exit (range 12) 10930 | -6/Proximity Caves | Core integrity fell below 50% 10933 | -6/Proximity Caves | Entered Factory 10933 | -6/Factory | Evolved 2 slots: Propulsion x1, Utility x1 10983 | -6/Factory | Spotted B-75 Beast 11042 | -6/Factory | Lost 4 parts (1n1u2w) 11080 | -6/Factory | Incoming investigation squad redirected 11206 | -6/Factory | Released all parts (13) 11225 | -6/Factory | Discovered new exit (range 6) 11227 | -6/Factory | Entered Extension 11253 | -6/Extension | Core integrity fell below 50% 11303 | -6/Extension | Rescued a captive Derelict 11304 | -6/Extension | Rescued a captive Derelict 11319 | -6/Extension | Rescued a captive Derelict 11321 | -6/Extension | Spotted B-75 Beast 11324 | -6/Extension | Spotted B-75 Beast 11325 | -6/Extension | Core integrity fell below 20% 11327 | -6/Extension | Destroyed by B-75 Beast with Magnetic Acceleration Cannon Last Messages --------------- GOAL=ESCAPE 11247_ Slug penetrates Wall. 11247_ Penetrated by Slug. 11250_ Connecting with Terminal... 11250_ Current location identified: Extension 11252_ Slug penetrates Terminal. 11252_ Penetrated by Slug. 11255_ Slug penetrates Wall. 11283_ Connecting with Terminal... Door Terminal flashes as you approach. 11303_ GY-DN4(h): "Free at last!" 11304_ YL-AQQ(l): "Free at last!" Door Terminal flashes as you approach. 11319_ JH-S7Z(h): "Free at last!" 11320_ Connecting with Door Terminal... 11321_ W-25 Informer sends out distress signal. 11323_ Slammed into W-25 Informer. 11324_ Slammed into U-05 Engineer. 11324_ Destabilizing: Core damaged (-25). 11327_ HV Slug penetrates B-75 Beast. Map ----- +----------------------------------------------------+ | #????????????# #??????????????????????????? | | #????????????# #??????????????????????????? | | ######???????# #??????????????????????????? | | ### #??????????????????????????? | | #######?# #??????????????????????????? | | ????????# ######### #??????????????????????????? | | ????????##??????????# #??????????????????????????? | | ????????????????????# #??????????????????????????? | | ????????????????????# #??????????????????????????? | | ????????????????????# #??????????????????????????? | | ????????????????????# #??????????????????????????? | | ????????????????????# #??????????????????????????? | | ????????????????????# #??????????????????????????? | | ????????????????##### #??????????????????????????? | | ????????????????# %#??????????????????????????? | | ????????????????###T# #??????????????????????????? | | ??????????????????### #??????????#???????????????? | | ????????????????????# #?###?##?? #???????????????? | | ??????????????????### ### ## ### ##??????????????? | | ??????????????????#""w" "" ""#?????????????? | | ??????????????????# " " Y " " #?????????????? | | ?????????????????## Y R u #?????????????? | | ?????????????????#; #?????????????? | | ?????????????###### ###???????????? | | ????????? u w ????????? | | ???????? @ ????????? | | ????????? ????????? | | ????????? % ????????? | | ????????? R ?????????? | | ?????????########## BB % BB #####?????????? | | ??????????????????# BB% BB #?????????????? | | ??????????????????# #?????????????? | | ??????????????????# #?????????????? | | ??????????????????# #?????????????? | | ??????????????????######T#"""#######?????????????? | | ????????????????????????#????????????????????????? | | ?????????????????????????????????????????????????? | | | | | | | | | | | | | | | | | | | | | | | | | | | +----------------------------------------------------+ Best States ------------- Heat Dissipation 53 Coolant Potential 65 Energy Generation 16 Energy Capacity 290 Matter Stores 300 Matter Capacity 300 Sight Range 16 Terrain Scan Density 10 Jamming Range 8 Armor Coverage 225 Resistance: TH 30 Propulsion Shielding 66 Utility Shielding 66 Weapon Shielding 66 Point Defense Rating 80 Weapon Cycling 15 Evasion (%) 50 Targeting Accuracy 5 Recoil Reduction 3 Offensive Hacking 10 Authchip Count 1 Item Schematics ----------------- Huge Storage Unit | -10/Materials | Hacked Transport Network Coupler | -9/Materials | Scanalyzed Imp. Ion Engine | -9/Materials | Scanalyzed Arm. Wheel | -9/Materials | Hacked Combat Drone Bay | -7/Data Miner | Free Lgt. Regenerative Plating | -7/Data Miner | Free Biomechanical Wings | -7/Data Miner | Free Imp. Heavy Machine Gun | -7/Data Miner | Free Gravity Neutralizing Apparatus | -7/Data Miner | Free Nuclear Pulse Array | -7/Data Miner | Free Point Defense System | -7/Data Miner | Free Enh. Gauss Cannon | -7/Data Miner | Free Arm. Leg | -7/Data Miner | Free Cmb. Gravmag System | -7/Data Miner | Free Nanoactuators | -7/Data Miner | Free Robot Schematics ------------------ R-10 Processor | -7/Data Miner | Free S-27 Virus | -7/Data Miner | Free A-15 Conveyor | -7/Data Miner | Free M-22 Extractor | -7/Data Miner | Free X-72 Disruptor | -7/Data Miner | Free Fabricated ------------ Point Defense System | x2 | -7/Factory | Preloaded Alien Tech Used ----------------- None Achievements -------------- None Challenges ------------ None Game ------ Seed HelicalMetafieldBoosters Manual? 0 Play Time 01:56:12 Cumulative 78.4 hours Start 2021.11.09 @ 07:41:08 End 2021.11.09 @ 14:19:56 Sessions 3 Manual Loads 0 Difficulty Rogue Special Mode None Game No. 58 Rogue 56 Adventurer 2 Explorer 0 Win Type - Total 0 Types 0/0/0/0/0/0/0/0/0 Lore% 34 Gallery% 34 Achievement% 32 Wizard Run 0 Options --------- ASCII 0 Keyboard 0 Movement Mouse Keybinds 1 Fullscreen 1 Font 18/TerminusBold Map View 76x50 Tactical HUD 1 Map Filters NONE Filters NONE Steam 1 RUN: 9221fad3-d7c0-42e2-bd4c-c0828a7dd06c